bitfinex/quotes_BTCUSD_20250527
["timestamp","ask_amount","ask_price","bid_price","bid_amount"]
[1748331619454,0.24964547,109390.0,109380.0,1.98818647]
[1748331619665,0.24964547,109390.0,109380.0,1.97904445]
[1748331620096,0.24964547,109390.0,109380.0,1.98818663]
[1748331620966,0.24964547,109390.0,109380.0,1.96990218]
[1748331621163,0.24964547,109390.0,109380.0,1.97904445]
[1748331621427,0.24964547,109390.0,109380.0,1.98818663]
[1748331622142,0.24964547,109390.0,109380.0,1.70496445]
[1748331622348,0.24050404,109390.0,109380.0,1.069025]
[1748331622568,0.24050404,109390.0,109380.0,1.0416]
[1748331623217,0.24050404,109390.0,109380.0,0.66872]
[1748331623428,0.24050404,109390.0,109380.0,1.02367983]
[1748331623852,0.24050404,109390.0,109380.0,0.74959983]
[1748331624059,0.28759246,109390.0,109380.0,1.02367983]
[1748331624479,0.28759246,109390.0,109380.0,0.39464]
[1748331624689,0.28859246,109390.0,109380.0,0.66872]
[1748331625300,0.28959246,109390.0,109380.0,0.66872]
[1748331625732,0.24250404,109390.0,109380.0,0.66872]
[1748331626166,0.24250404,109390.0,109380.0,0.39464]
[1748331626390,0.24250404,109390.0,109380.0,0.66872]
[1748331627057,0.24250404,109390.0,109380.0,0.39464]
[1748331627285,0.24250404,109390.0,109380.0,0.66872]
[1748331627938,0.24250404,109390.0,109360.0,0.027429]
[1748331627939,0.0158,109370.0,109360.0,0.027429]
[1748331628159,0.23265196,109370.0,109360.0,1.00195983]
[1748331628589,0.24119074,109370.0,109360.0,1.00195983]
[1748331629225,0.24119074,109370.0,109360.0,1.00295983]
[1748331629730,0.24119074,109370.0,109360.0,1.00495983]
[1748331630903,0.24119074,109370.0,109360.0,1.19495983]
[1748331631748,0.24119074,109370.0,109360.0,1.19395983]
[1748331632181,0.24119074,109370.0,109360.0,1.00395983]
[1748331632803,0.24219074,109370.0,109360.0,1.00395983]
[1748331633577,0.24219074,109370.0,109360.0,1.00195983]
[1748331634185,0.24319074,109370.0,109360.0,1.00195983]
[1748331634393,0.22739074,109370.0,109360.0,1.00195983]
[1748331635414,0.24239074,109370.0,109360.0,1.00195983]
[1748331635633,0.21169074,109370.0,109360.0,1.00195983]
[1748331635837,0.21169074,109370.0,109360.0,1.01765983]
[1748331637074,0.21169074,109370.0,109360.0,0.74357983]
[1748331637280,0.21169074,109370.0,109360.0,1.01769983]
[1748331637837,0.21169074,109370.0,109360.0,1.00199983]
[1748331639994,0.21169074,109370.0,109360.0,0.64704]
[1748331640224,0.21169074,109370.0,109360.0,0.96663562]
[1748331640816,0.11169074,109370.0,109360.0,0.96663562]
[1748331641253,0.12083401,109370.0,109360.0,1.15866178]
[1748331642162,0.01968205,109370.0,109360.0,1.34866178]
[1748331642372,0.20254755,109370.0,109360.0,1.34866178]
[1748331643087,0.21169074,109370.0,109360.0,1.34866178]
[1748331643299,0.21169074,109370.0,109360.0,1.37300564]
[1748331643541,0.01968172,109370.0,109360.0,1.38214941]
[1748331643753,0.01053878,109370.0,109360.0,2.40039111]
[1748331643981,0.01053878,109370.0,109360.0,2.42694811]
[1748331644208,0.002,109370.0,109360.0,2.42781911]
[1748331644599,0.001,109370.0,109360.0,2.42781911]
[1748331645009,0.05489784,109390.0,109380.0,0.25241717]
[1748331645254,0.05489784,109390.0,109380.0,1.62719397]
[1748331645680,0.0725789,109390.0,109380.0,1.65461797]
[1748331646092,0.0725789,109390.0,109380.0,1.37034527]
[1748331646892,0.07257965,109390.0,109380.0,1.38428586]
[1748331647409,0.07357965,109390.0,109380.0,1.38428586]
[1748331647513,0.07357965,109390.0,109380.0,1.47428586]
[1748331648177,0.07457965,109390.0,109380.0,1.47428586]
[1748331649718,0.24827061,109390.0,109380.0,1.46514418]
[1748331651668,0.23912935,109390.0,109380.0,1.3568199]
[1748331651880,0.22998792,109390.0,109380.0,1.36596225]
[1748331652184,0.22998792,109390.0,109380.0,1.37510452]
[1748331653738,0.22998792,109390.0,109380.0,1.35860452]
[1748331654361,0.22998792,109390.0,109380.0,1.34946225]
[1748331655171,0.22998792,109390.0,109380.0,1.36546225]
[1748331655856,0.22998792,109390.0,109380.0,1.37460452]
[1748331656553,0.22998792,109390.0,109380.0,1.3837467]
[1748331657687,0.22998792,109390.0,109380.0,1.37460452]
[1748331657980,0.22084641,109390.0,109380.0,1.37460452]
[1748331658885,0.22084641,109390.0,109380.0,1.46460452]
[1748331659061,0.22084641,109390.0,109380.0,1.37460452]
[1748331659912,0.22084641,109390.0,109380.0,1.3837467]
[1748331660158,0.22084641,109390.0,109380.0,1.37460452]
[1748331661002,0.22084641,109390.0,109380.0,1.38374662]
[1748331661782,0.22998776,109390.0,109380.0,1.38374662]
[1748331662406,0.22998776,109390.0,109380.0,1.37460418]
[1748331663993,0.22998776,109390.0,109380.0,1.46460418]
[1748331665058,0.22998776,109390.0,109380.0,1.37460418]
[1748331666107,0.22998776,109390.0,109380.0,1.65850006]
[1748331666519,0.0471547,109390.0,109380.0,2.16478591]
[1748331666788,0.04715461,109390.0,109380.0,2.16478591]
[1748331666979,0.04715461,109390.0,109380.0,2.07069891]
[1748331667624,0.03045804,109400.0,109390.0,0.24145584]
[1748331667844,0.03045804,109400.0,109390.0,2.98779648]
[1748331668088,0.03045804,109400.0,109390.0,3.63375648]
[1748331668305,0.04977665,109430.0,109400.0,0.18281535]
[1748331668521,0.04977665,109430.0,109420.0,0.88051264]
[1748331668522,0.04103267,109430.0,109420.0,0.88051264]
[1748331668762,0.04103267,109430.0,109420.0,1.5356192]
[1748331668981,0.05930794,109430.0,109420.0,1.74172729]
[1748331669197,0.05017026,109430.0,109420.0,1.73000629]
[1748331669423,0.01783033,109430.0,109420.0,1.39688808]
[1748331669637,0.01783033,109430.0,109420.0,1.71629529]
[1748331669844,0.00869274,109430.0,109420.0,1.71629529]
[1748331670059,0.02696792,109430.0,109420.0,1.74096334]
[1748331670473,0.02696792,109430.0,109420.0,1.09504334]
[1748331670712,0.01783025,109430.0,109420.0,1.74092334]
[1748331670921,0.02696801,109430.0,109420.0,1.74092334]
[1748331671128,0.00869274,109430.0,109420.0,1.74092334]
[1748331671346,0.02696792,109430.0,109420.0,1.74092334]
[1748331671779,0.01783033,109430.0,109420.0,1.74092334]
[1748331671991,0.00869274,109430.0,109420.0,1.74092334]
[1748331672208,0.01783041,109430.0,109420.0,1.74092334]
[1748331672413,0.00869274,109430.0,109420.0,1.74092334]
[1748331672633,0.02696784,109430.0,109420.0,1.74092334]
[1748331672838,0.01783025,109430.0,109420.0,1.79485485]
[1748331673050,0.01783025,109430.0,109420.0,1.74092334]
[1748331673227,0.00869274,109430.0,109420.0,1.74092334]
[1748331673484,0.01783033,109430.0,109420.0,1.74092334]
[1748331673867,0.01783025,109430.0,109420.0,1.74092334]
[1748331674076,0.01783025,109430.0,109420.0,1.72196434]
[1748331674499,0.00869274,109430.0,109420.0,1.72196434]
[1748331677659,0.00869274,109430.0,109420.0,2.06196434]
[1748331679983,0.00869274,109430.0,109420.0,1.41608434]
[1748331680209,0.00869274,109430.0,109420.0,2.06068434]
[1748331682222,0.00869274,109430.0,109420.0,1.70604608]
[1748331682433,0.00869274,109430.0,109420.0,2.06068434]
[1748331685852,0.00869274,109430.0,109420.0,1.78672434]
[1748331686041,0.00869274,109430.0,109420.0,2.06068434]
[1748331686252,0.01783041,109430.0,109420.0,1.77118434]
[1748331686464,0.2412339,109430.0,109420.0,0.92128824]
[1748331686681,0.25037149,109430.0,109420.0,1.21352601]
[1748331687116,0.2412339,109430.0,109420.0,0.7385063]
[1748331687322,0.22295797,109430.0,109420.0,1.21352617]
[1748331687537,0.23146531,109430.0,109420.0,1.21352617]
[1748331687744,0.23146531,109430.0,109420.0,1.20438733]
[1748331687963,0.23146531,109430.0,109420.0,1.22266527]
[1748331688387,0.23146531,109430.0,109420.0,1.02160539]
[1748331688592,0.23146531,109430.0,109420.0,1.20438725]
[1748331688944,0.23146531,109430.0,109420.0,0.0279063]
[1748331689176,0.23146531,109430.0,109420.0,0.9850553]
[1748331689608,0.23146531,109430.0,109420.0,0.3404953]
[1748331689826,0.23146531,109430.0,109420.0,0.2744553]
[1748331690271,0.32101087,109430.0,109420.0,0.2744553]
[1748331690706,0.37238707,109430.0,109420.0,0.2744553]
[1748331690962,0.32201087,109430.0,109420.0,0.2744553]
[1748331692725,0.23246531,109430.0,109420.0,0.0004953]
[1748331692955,0.32201087,109430.0,109420.0,0.0004953]
[1748331693178,0.32201087,109430.0,109420.0,0.2744553]
[1748331694937,0.40795089,109430.0,109420.0,0.0004953]
[1748331695192,1.18448998,109430.0,109420.0,0.0004953]
[1748331695517,0.21701467,109390.0,109380.0,0.002]
[1748331695706,0.21701467,109390.0,109380.0,0.27645579]
[1748331695912,0.30656023,109390.0,109380.0,0.27645579]
[1748331696173,0.21701467,109390.0,109380.0,0.27645579]
[1748331696354,0.20962201,109390.0,109380.0,0.27645579]
[1748331697069,0.02678995,109390.0,109380.0,0.27645579]
[1748331697291,0.03593155,109390.0,109380.0,1.21208937]
[1748331697531,0.21876361,109390.0,109380.0,1.20394744]
[1748331698142,0.20962243,109390.0,109380.0,0.64817579]
[1748331698347,0.200481,109390.0,109380.0,0.64817579]
[1748331699327,0.200481,109390.0,109380.0,0.56417579]
[1748331699546,0.200481,109390.0,109380.0,0.83821579]
[1748331699824,0.216081,109390.0,109380.0,0.83821579]
[1748331700213,0.216081,109390.0,109380.0,0.83721579]
[1748331700547,0.201481,109390.0,109380.0,0.83721579]
[1748331701062,0.201481,109390.0,109380.0,1.38384518]
[1748331701286,0.201481,109390.0,109380.0,1.40014518]
[1748331701448,0.201481,109390.0,109380.0,1.20815405]
[1748331701598,0.1923394,109390.0,109380.0,1.19185405]
[1748331703319,0.18383206,109390.0,109380.0,1.19185405]
[1748331703531,0.18383206,109390.0,109380.0,1.20099648]
[1748331704191,0.18383206,109390.0,109380.0,1.19185405]
[1748331704517,0.18383206,109390.0,109380.0,1.20588113]
[1748331706328,0.18383206,109390.0,109380.0,0.93184113]
[1748331706566,0.18383206,109390.0,109380.0,1.20592113]
[1748331707524,0.18383206,109390.0,109380.0,0.85128287]
[1748331707734,0.21483206,109390.0,109380.0,0.19249579]
[1748331707985,0.21483206,109390.0,109380.0,0.83633579]
[1748331708633,0.22333317,109390.0,109380.0,0.83633579]
[1748331710391,0.22333317,109390.0,109380.0,0.19249579]
[1748331710613,0.22333317,109390.0,109380.0,0.83633579]
[1748331711273,0.22333317,109390.0,109380.0,0.19249579]
[1748331711430,0.22333317,109390.0,109380.0,0.46657579]
[1748331712044,0.22333317,109390.0,109380.0,0.19249579]
[1748331712248,0.22333317,109390.0,109380.0,0.46657579]
[1748331713139,0.31287873,109390.0,109380.0,0.46657579]
[1748331713355,0.31287873,109390.0,109380.0,0.19249579]
[1748331713534,0.31287873,109390.0,109380.0,0.46657579]
[1748331713759,0.31287873,109390.0,109380.0,0.27657579]
[1748331713961,0.31387873,109390.0,109380.0,0.27657579]
[1748331714220,0.36354957,109390.0,109380.0,0.27657579]
[1748331714679,0.31387873,109390.0,109380.0,0.00249579]
[1748331714898,0.31387873,109390.0,109380.0,0.27657579]
[1748331715093,0.31387873,109390.0,109380.0,0.00249579]
[1748331715548,0.32841958,109390.0,109380.0,0.00249579]
[1748331718865,0.1920086,109370.0,109360.0,0.64584]
[1748331719083,0.1920086,109370.0,109360.0,0.64633634]
[1748331719310,0.23140971,109370.0,109360.0,0.00249634]
[1748331719542,0.23140971,109370.0,109360.0,0.27657634]
[1748331719954,0.23140971,109370.0,109360.0,0.27857634]
[1748331720179,0.23140971,109370.0,109360.0,0.28057634]
[1748331720663,0.20150971,109370.0,109360.0,0.28057634]
[1748331720904,0.20150971,109370.0,109360.0,0.6674146]
[1748331721375,0.20150971,109370.0,109360.0,0.6332146]
[1748331721800,0.20150971,109370.0,109360.0,0.7944146]
[1748331724330,0.20150971,109370.0,109360.0,0.7632146]
[1748331724789,0.20150971,109370.0,109360.0,0.40857634]
[1748331725040,0.20150971,109370.0,109360.0,0.7632146]
[1748331725258,0.20150971,109370.0,109360.0,0.40857634]
[1748331725478,0.23994556,109370.0,109360.0,0.40857634]
[1748331725697,0.20150971,109370.0,109360.0,0.13449634]
[1748331725939,0.20150971,109370.0,109360.0,0.77841634]
[1748331726201,0.21740971,109370.0,109360.0,0.77841634]
[1748331726494,0.21740971,109370.0,109360.0,0.64841634]
[1748331727693,0.27303556,109370.0,109360.0,0.64841634]
[1748331727899,0.27303556,109370.0,109360.0,0.00449634]
[1748331728124,0.27303556,109370.0,109360.0,0.27861634]
[1748331728740,0.23300971,109370.0,109360.0,0.27861634]
[1748331729154,0.23300971,109370.0,109360.0,0.00449634]
[1748331729357,0.23300971,109370.0,109360.0,0.27861634]
[1748331730108,0.21740971,109370.0,109360.0,0.27861634]
[1748331730763,0.20150971,109370.0,109360.0,0.6651546]
[1748331730973,0.20150971,109370.0,109360.0,0.49436087]
[1748331739577,0.20150971,109370.0,109360.0,0.38653826]
[1748331739774,0.20150971,109370.0,109360.0,0.66065826]
[1748331741409,0.21065273,109370.0,109360.0,0.84354048]
[1748331741617,0.21065273,109370.0,109360.0,0.8526845]
[1748331741839,0.21065273,109370.0,109360.0,0.86182844]
[1748331743496,0.21065273,109370.0,109360.0,0.8709723]
[1748331745453,0.21065273,109370.0,109360.0,0.88011607]
[1748331746622,0.21065273,109370.0,109360.0,0.58770844]
[1748331746823,0.21065273,109370.0,109360.0,0.86182844]
[1748331747410,0.21065273,109370.0,109360.0,1.23070844]
[1748331749481,0.21065273,109370.0,109360.0,1.2398523]
[1748331751041,0.21065273,109370.0,109360.0,1.24899607]
[1748331753315,0.21065273,109370.0,109360.0,0.89435781]
[1748331753452,0.21065273,109370.0,109360.0,1.24899607]
[1748331754580,0.00950111,109370.0,109360.0,1.34768532]
[1748331754791,0.00950111,109370.0,109360.0,1.34768482]
[1748331755035,0.00950111,109370.0,109360.0,2.23543982]
[1748331755245,0.00950111,109370.0,109360.0,1.97001482]
[1748331755483,0.00950111,109370.0,109360.0,1.93401482]
[1748331755697,0.001,109370.0,109360.0,1.83002582]
[1748331755921,0.001,109370.0,109360.0,0.87128982]
[1748331755922,0.01828512,109370.0,109360.0,0.87128982]
[1748331756137,0.20115145,109370.0,109360.0,1.12812793]
[1748331756351,0.20115145,109370.0,109360.0,1.32015401]
[1748331756544,0.20115145,109370.0,109360.0,1.32929778]
[1748331758162,0.20115145,109370.0,109360.0,1.33844147]
[1748331759056,0.01828545,109370.0,109360.0,1.33844147]
[1748331759277,0.03657149,109370.0,109360.0,1.34758448]
[1748331759471,0.03657141,109370.0,109360.0,1.34758448]
[1748331759895,0.04571451,109370.0,109360.0,1.34758448]
[1748331760130,0.0091421,109380.0,109360.0,0.66800956]
[1748331760367,0.0091421,109380.0,109370.0,0.66590618]
[1748331760368,0.00914185,109380.0,109370.0,0.66590618]
[1748331760584,0.00914185,109380.0,109370.0,0.69562065]
[1748331761002,0.00914168,109380.0,109370.0,0.68647746]
[1748331761247,0.01828345,109380.0,109370.0,0.52411923]
[1748331761469,0.02683327,109380.0,109370.0,0.52411923]
[1748331761743,0.00854982,109380.0,109370.0,2.22927285]
[1748331762575,0.001,109380.0,109370.0,1.88743685]
[1748331762841,0.04770599,109390.0,109380.0,0.24167508]
[1748331763065,0.03856439,109390.0,109380.0,1.3287789]
[1748331763277,0.04711196,109390.0,109380.0,1.3287789]
[1748331763931,0.04711162,109390.0,109380.0,1.3287789]
[1748331764111,0.03856405,109390.0,109380.0,1.3287789]
[1748331764494,0.02942279,109390.0,109380.0,1.3287789]
[1748331765066,0.03956397,109390.0,109380.0,1.3287789]
[1748331765461,0.03142279,109390.0,109380.0,1.3287789]
[1748331765820,0.03142279,109390.0,109380.0,1.73705121]
[1748331767950,0.004,109390.0,109380.0,2.60599121]
[1748331768715,0.004,109390.0,109380.0,2.63341221]
[1748331769294,0.002,109390.0,109380.0,2.63341221]
[1748331769506,0.002,109390.0,109380.0,2.63441221]
[1748331771199,0.01114085,109390.0,109380.0,2.63441221]
[1748331771406,0.01114085,109390.0,109380.0,2.62257121]
[1748331771615,0.002,109390.0,109380.0,2.62257121]
[1748331772461,0.002,109390.0,109380.0,1.94643521]
[1748331772707,0.002,109390.0,109380.0,2.22051521]
[1748331776277,0.002,109390.0,109380.0,2.56051521]
[1748331777583,0.002,109390.0,109380.0,2.28643521]
[1748331777802,0.002,109390.0,109380.0,2.36577121]
[1748331778023,0.002,109390.0,109380.0,2.30115121]
[1748331778243,0.01114085,109390.0,109380.0,2.28985121]
[1748331778465,0.002,109390.0,109380.0,2.28985121]
[1748331778891,0.01114093,109390.0,109380.0,2.28985121]
[1748331779392,0.01114085,109390.0,109380.0,2.28985121]
[1748331779601,0.02028186,109390.0,109380.0,2.28985121]
[1748331779821,0.02028178,109390.0,109380.0,2.28985121]
[1748331780403,0.02028186,109390.0,109380.0,2.28985121]
[1748331780704,0.20311467,109390.0,109380.0,0.54243887]
[1748331780940,0.21841467,109390.0,109380.0,1.39227826]
[1748331781417,0.20311467,109390.0,109380.0,1.39227826]
[1748331782001,0.20311467,109390.0,109380.0,1.58426947]
[1748331782247,0.20311467,109390.0,109380.0,1.69209948]
[1748331782248,0.2122556,109390.0,109380.0,1.69209948]
[1748331782478,0.2122556,109390.0,109380.0,1.72319948]
[1748331782715,0.20311467,109390.0,109380.0,1.69209965]
[1748331784406,0.20311467,109390.0,109380.0,1.70578784]
[1748331786090,0.20311467,109390.0,109380.0,1.69664557]
[1748331786350,0.19397349,109390.0,109380.0,1.69664557]
[1748331787719,0.19397349,109390.0,109380.0,1.70578784]
[1748331787928,0.20251859,109390.0,109380.0,1.70578784]
[1748331788374,0.19337716,109390.0,109380.0,1.49551201]
[1748331788599,0.19337716,109390.0,109380.0,1.67836079]
[1748331789033,0.19337716,109390.0,109380.0,1.68750306]
[1748331789723,0.19337716,109390.0,109380.0,1.67381487]
[1748331790131,0.19337716,109390.0,109380.0,1.68295722]
[1748331790601,0.19337716,109390.0,109380.0,1.69209932]
[1748331790851,0.0288273,109390.0,109380.0,1.33766134]
[1748331791080,0.0379684,109390.0,109380.0,1.34680277]
[1748331791305,0.04710991,109390.0,109380.0,1.32851899]
[1748331791531,0.04710983,109390.0,109380.0,1.33766084]
[1748331793981,0.04710983,109390.0,109380.0,1.67766084]
[1748331794471,0.04710983,109390.0,109380.0,1.69160169]
[1748331803315,0.04710983,109390.0,109380.0,1.69104169]
[1748331803989,0.0105451,109390.0,109380.0,1.69104169]
[1748331804195,0.01968595,109390.0,109380.0,1.86647869]
[1748331804401,0.0105451,109390.0,109380.0,1.86647869]
[1748331804636,0.002,109390.0,109380.0,1.89389969]
[1748331805833,0.002,109390.0,109380.0,1.61981969]
[1748331806093,0.002,109390.0,109380.0,1.89389969]
[1748331806243,0.01114093,109390.0,109380.0,1.89389969]
[1748331807219,0.002,109390.0,109380.0,1.89389969]
[1748331808909,0.01114085,109390.0,109380.0,1.89389969]
[1748331809354,0.02028178,109390.0,109380.0,1.84764669]
[1748331809601,0.002,109390.0,109380.0,1.84209669]
[1748331812425,0.002,109390.0,109380.0,2.23673669]
[1748331813302,0.01114085,109390.0,109380.0,2.23673669]
[1748331813529,0.002,109390.0,109380.0,2.23673669]
[1748331813935,0.002,109390.0,109380.0,1.59537669]
[1748331814160,0.002,109390.0,109380.0,2.23673669]
[1748331814379,0.01114085,109390.0,109380.0,2.23673669]
[1748331815314,0.01114085,109390.0,109380.0,2.24973769]
[1748331815831,0.01969718,109390.0,109380.0,2.43973769]
[1748331816252,0.01969718,109390.0,109380.0,2.08509943]
[1748331816459,0.02883828,109390.0,109380.0,2.29392084]
[1748331816658,0.03797946,109390.0,109380.0,2.30306269]
[1748331816880,0.04712089,109390.0,109380.0,2.30306269]
[1748331817239,0.0562624,109390.0,109380.0,2.30306269]
[1748331817433,0.04770607,109390.0,109380.0,2.30306269]
[1748331818099,0.21225618,109390.0,109380.0,1.26383862]
[1748331818307,0.218615,109390.0,109380.0,2.20797345]
[1748331818582,0.218615,109390.0,109380.0,2.21711588]
[1748331818751,0.22717201,109390.0,109380.0,2.02512467]
[1748331818932,0.22717201,109390.0,109380.0,2.03625823]
[1748331819400,0.22717201,109390.0,109380.0,1.19376467]
[1748331819570,0.21803058,109390.0,109380.0,1.83512467]
[1748331820201,0.21803058,109390.0,109380.0,1.8442671]
[1748331820409,0.21803058,109390.0,109380.0,2.02711588]
[1748331820765,0.21803058,109390.0,109380.0,1.8442671]
[1748331821185,0.21803058,109390.0,109380.0,1.2029071]
[1748331821406,0.21803058,109390.0,109380.0,1.10421911]
[1748331821623,0.23333058,109390.0,109380.0,0.001]
[1748331824687,0.22259105,109380.0,109370.0,1.33599826]
[1748331825568,0.23114806,109380.0,109370.0,0.96867826]
[1748331825838,0.23114806,109380.0,109370.0,0.61404]
[1748331826059,0.23214806,109380.0,109370.0,0.80404]
[1748331826262,0.23314806,109380.0,109370.0,0.80404]
[1748331826828,0.27494607,109380.0,109370.0,0.19]
[1748331827008,0.27494607,109380.0,109370.0,0.46408]
[1748331827440,0.2236086,109370.0,109360.0,0.69463826]
[1748331827642,0.2236086,109370.0,109360.0,1.33607826]
[1748331828465,0.2236086,109370.0,109360.0,1.33707826]
[1748331828678,0.2080086,109370.0,109360.0,1.33707826]
[1748331829492,0.2080086,109370.0,109360.0,1.06223826]
[1748331829706,0.2230086,109370.0,109360.0,0.98168]
[1748331829925,0.2230086,109370.0,109360.0,1.33631826]
[1748331831095,0.2230086,109370.0,109360.0,1.52631826]
[1748331831285,0.2230086,109370.0,109360.0,0.80508]
[1748331831908,0.2230086,109370.0,109360.0,0.46508]
[1748331832627,0.2080086,109370.0,109360.0,0.81971826]
[1748331832883,0.1920086,109370.0,109360.0,0.83471826]
[1748331833995,0.1920086,109370.0,109360.0,0.81971826]
[1748331834367,0.1920086,109370.0,109360.0,0.46508]
[1748331834576,0.1920086,109370.0,109360.0,0.81971826]
[1748331835257,0.2234086,109370.0,109360.0,0.81971826]
[1748331836245,0.2234086,109370.0,109360.0,0.46508]
[1748331836444,0.2234086,109370.0,109360.0,0.81971826]
[1748331836863,0.2234086,109370.0,109360.0,0.46512]
[1748331837401,0.2234086,109370.0,109360.0,0.46412]
[1748331837863,0.2244086,109370.0,109360.0,0.46412]
[1748331838994,0.2254086,109370.0,109360.0,0.46412]
[1748331840608,0.23393982,109370.0,109360.0,0.46412]
[1748331843594,0.20253982,109370.0,109360.0,0.81875826]
[1748331844023,0.1940086,109370.0,109360.0,0.81875826]
[1748331844433,0.2260086,109370.0,109360.0,0.81875826]
[1748331844627,0.2260086,109370.0,109360.0,0.46412]
[1748331844853,0.1940086,109370.0,109360.0,0.81875826]
[1748331846135,0.20254422,109370.0,109360.0,0.81875826]
[1748331846954,0.21874422,109370.0,109360.0,0.54463826]
[1748331847284,0.23374422,109370.0,109360.0,0.46412]
[1748331849119,0.23374422,109370.0,109360.0,0.81875826]
[1748331849295,0.23374422,109370.0,109360.0,0.46412]
[1748331849510,0.36494908,109370.0,109360.0,0.19]
[1748331849925,0.36494908,109370.0,109360.0,0.46412]
[1748331851578,0.36494908,109370.0,109360.0,0.27412]
[1748331852101,0.20118824,109350.0,109340.0,2.22131826]
[1748331852318,0.20118824,109350.0,109340.0,2.14129722]
[1748331852571,0.20118824,109350.0,109340.0,2.71005115]
[1748331852788,0.20118824,109350.0,109340.0,2.80251612]
[1748331853034,0.18289894,109350.0,109340.0,2.60130914]
[1748331853480,0.18289894,109350.0,109340.0,2.60330914]
[1748331854169,0.18289894,109350.0,109340.0,1.86917722]
[1748331854383,0.18289894,109350.0,109340.0,2.14329722]
[1748331854599,0.18289894,109350.0,109340.0,1.50349722]
[1748331854600,0.22965966,109350.0,109340.0,1.50349722]
[1748331854831,0.19145009,109350.0,109340.0,1.77761722]
[1748331855264,0.19145009,109350.0,109340.0,2.52973548]
[1748331855685,0.18289894,109350.0,109340.0,2.52973548]
[1748331857190,0.18289894,109350.0,109340.0,2.64973548]
[1748331858276,0.19144851,109350.0,109340.0,2.64973548]
[1748331860305,0.19144851,109350.0,109340.0,2.29509722]
[1748331860487,0.19144851,109350.0,109340.0,2.64973548]
[1748331860676,0.19144851,109350.0,109340.0,2.63443548]
[1748331861674,0.19144851,109350.0,109340.0,2.64943548]
[1748331863086,0.19144851,109350.0,109340.0,2.51443548]
[1748331864858,0.19144851,109350.0,109340.0,2.53103548]
[1748331866648,0.19144851,109350.0,109340.0,2.81264249]
[1748331867101,0.21945798,109360.0,109350.0,0.24153293]
[1748331867320,0.21945732,109360.0,109350.0,0.68571675]
[1748331867744,0.21945732,109360.0,109350.0,0.71314775]
[1748331867991,0.21031388,109360.0,109350.0,0.71314775]
[1748331868408,0.21031388,109360.0,109350.0,0.71310775]
[1748331868620,0.21031388,109360.0,109350.0,0.71310784]
[1748331869053,0.20117019,109360.0,109350.0,0.71310784]
[1748331869447,0.19202633,109360.0,109350.0,0.70496323]
[1748331869998,0.19202633,109360.0,109350.0,0.69581854]
[1748331870215,0.19202633,109360.0,109350.0,0.70496315]
[1748331870455,0.19202633,109360.0,109350.0,0.69581854]
[1748331871001,0.19206633,109360.0,109350.0,1.03581854]
[1748331871209,0.19206633,109360.0,109350.0,1.04496323]
[1748331872131,0.19206633,109360.0,109350.0,1.03581854]
[1748331872336,0.19206633,109360.0,109350.0,1.45391005]
[1748331872546,0.19206633,109360.0,109350.0,1.39997854]
[1748331874680,0.19206633,109360.0,109350.0,1.40912323]
[1748331875328,0.19206633,109360.0,109350.0,1.41826784]
[1748331875592,0.01832746,109360.0,109350.0,1.43655672]
[1748331875819,0.00918335,109360.0,109350.0,1.43655672]
[1748331876048,0.00918335,109360.0,109350.0,2.40860798]
[1748331876296,0.00918344,109360.0,109350.0,2.40860798]
[1748331876721,4e-05,109360.0,109350.0,2.40860798]
[1748331876934,0.00918344,109360.0,109350.0,2.40860798]
[1748331877567,0.00918335,109360.0,109350.0,2.40860798]
[1748331877995,0.01832687,109360.0,109350.0,2.40860798]
[1748331878409,0.00918335,109360.0,109350.0,2.40860798]
[1748331879367,0.01832687,109360.0,109350.0,2.40860798]
[1748331879568,0.00918335,109360.0,109350.0,2.40860798]
[1748331879774,0.01832687,109360.0,109350.0,2.40860798]
[1748331880057,0.00918335,109360.0,109350.0,2.40860798]
[1748331880472,4e-05,109360.0,109350.0,2.40860798]
[1748331882322,4e-05,109360.0,109350.0,2.42314883]
[1748331882753,4e-05,109360.0,109350.0,2.42214883]
[1748331883248,4e-05,109360.0,109350.0,2.42414883]
[1748331883464,4e-05,109360.0,109350.0,2.42514883]
[1748331887978,0.70287802,109410.0,109400.0,0.02742129]
[1748331887979,0.002,109410.0,109400.0,0.02742129]
[1748331888247,0.03233993,109420.0,109410.0,0.56475826]
[1748331888465,0.02108685,109420.0,109410.0,3.60215252]
[1748331888667,0.02108685,109420.0,109410.0,3.05805603]
[1748331888881,0.01106098,109420.0,109410.0,3.05805603]
[1748331889090,0.01106098,109420.0,109410.0,2.49815803]
[1748331889291,0.01106098,109420.0,109410.0,2.58820081]
[1748331889497,0.01106098,109420.0,109410.0,3.22808081]
[1748331889701,0.01106098,109420.0,109410.0,3.23208081]
[1748331889907,0.01106098,109420.0,109410.0,3.28397222]
[1748331890066,0.01106098,109420.0,109410.0,3.2978555]
[1748331890939,0.01106098,109420.0,109410.0,3.2712985]
[1748331891142,0.01106098,109420.0,109410.0,3.2752985]
[1748331891341,0.01106098,109420.0,109410.0,3.24904409]
[1748331891584,0.01106098,109420.0,109410.0,2.61008409]
[1748331891787,0.01106098,109420.0,109410.0,2.89440583]
[1748331891969,0.01106098,109420.0,109410.0,3.25230018]
[1748331892406,0.01106098,109420.0,109410.0,2.61334018]
[1748331892619,0.01110098,109420.0,109410.0,3.25222018]
[1748331893764,4e-05,109420.0,109410.0,3.25222018]
[1748331894230,4e-05,109420.0,109410.0,3.34222018]
[1748331895051,4e-05,109420.0,109410.0,3.34214018]
[1748331896969,4e-05,109420.0,109410.0,3.36869718]
[1748331898031,4e-05,109420.0,109410.0,3.34214018]
[1748331898241,4e-05,109420.0,109410.0,3.36954918]
[1748331899554,4e-05,109420.0,109410.0,1.06195692]
[1748331899780,4e-05,109420.0,109410.0,2.05535518]
[1748331900618,4e-05,109420.0,109410.0,1.41659518]
[1748331900866,4e-05,109420.0,109410.0,2.05131518]
[1748331901074,4e-05,109420.0,109410.0,2.04731518]
[1748331901278,4e-05,109420.0,109410.0,2.10324669]
[1748331901483,4e-05,109420.0,109410.0,2.04931518]
[1748331901917,4e-05,109420.0,109410.0,2.05131518]
[1748331902398,4e-05,109420.0,109410.0,2.05127518]
[1748331903307,4e-05,109420.0,109410.0,1.77731518]
[1748331903478,4e-05,109420.0,109410.0,2.05127518]
[1748331904931,0.00917842,109420.0,109410.0,2.05127518]
[1748331905379,0.01831693,109420.0,109410.0,1.41259518]
[1748331905598,0.01831693,109420.0,109410.0,2.05127518]
[1748331905888,0.01831693,109420.0,109410.0,1.41259518]
[1748331906129,0.00917842,109420.0,109410.0,2.05127518]
[1748331906998,0.01831693,109420.0,109410.0,2.05127518]
[1748331907181,0.00917834,109420.0,109410.0,2.05127518]
[1748331907705,0.02745669,109420.0,109410.0,1.81015777]
[1748331907918,0.20109987,109420.0,109410.0,0.95729392]
[1748331908140,0.20109987,109420.0,109410.0,1.87641591]
[1748331908392,0.20109987,109420.0,109410.0,1.86727632]
[1748331908610,0.20958983,109420.0,109410.0,1.91742932]
[1748331908812,0.1913119,109420.0,109410.0,1.86519549]